Cogmind - Beta 16 X2 @@@ ROGUE MODE // 2025.10.10 @ 20:33:32 Player: Selene Result: Destroyed by P-80 Master with Gamma Rifle Performance ------------- Evolutions (8) 4000 Regions Visited (16) 3200 Robots Destroyed (186) 930 Value Destroyed (7807) 7807 Prototype IDs (34) 680 Alien Tech Used (0) 0 Bonus (2354) 2354 TOTAL SCORE: 18971 Bonus ------- High Alert Combat Kills 418 Follower Combat Kills 1603 Entered DSFs 500 Friendly Fire -167 Cogmind --------- Core Integrity 0/1450 Matter 10/300 Energy 100/100 System Corruption 69% Temperature Cool (0) Movement Core (50) Location -2/Research Parts ------- > --- POWER (2) -------- (None) > --- PROPULSION (6) --- (None) > --- UTILITY (11) ----- Machine Analyzer Spectral Analyzer Advanced Terrain Scan Processor Improved Melee Analysis Suite Advanced Launcher Guidance Computer Improved Target Analyzer Hacking Suite System Shield Improved System Guard > --- WEAPON (4) ------- (None) > --- INVENTORY (5) ---- Active Sensor Suite Enhanced Nova Cannon Advanced EMP Blaster Peak State ------------ > --- POWER ------------ Micro Antimatter Reactor Quantum-Antimatter Reactor > --- PROPULSION ------- Armored Heavy Treads Treaded Siege-HC Exoskeleton > --- UTILITY ---------- Scrap Engine Advanced Cooling System High-capacity Storage Unit Machine Analyzer Spectral Analyzer Advanced Salvage Targeting Computer Improved Armor Integrity Analyzer Advanced Transmission Jammer Hacking Suite Improved System Shield > --- WEAPON ----------- Compact HERF Cannon Hpw. Directed Phase Construct/G Hvy. Ballistic Linear Construct/C > --- INVENTORY -------- Biometal Leg Linear Gravjet Improved Coolant Injector Improved Energy Well Matter Compressor Active Sensor Suite Advanced Terrain Scan Processor Advanced Launcher Guidance Computer Advanced Particle Charger Improved Kinecellerator Advanced Force Booster Advanced Hardlight Generator Advanced Remote Force Field Long-range Tractor Beam Advanced EMP Blaster Fusion Bomb Launcher [Rating: 172] Favorites ----------- Power Constructs Engine Light Ion Engine Power Core Micro Nuclear Core Reactor Constructs Propulsion Light Treads Treads Light Treads Leg Shield Leg Wheel Wheel Hover Unit Improved Airjet Flight Unit VTOL Module Utility Large Storage Unit Device Armored Scrap Engine Storage Large Storage Unit Processor Machine Analyzer Hackware Hacking Suite Protection Improved Utility Shielding Weapon Constructs Energy Gun Constructs Energy Cannon HERF Cannon Ballistic Gun Light Assault Rifle Ballistic Cannon Constructs Launcher Advanced EMP Blaster Special Weapon Improved Remote Datajack Slashing Weapon Makeshift Axe Piercing Weapon Lance Build | -11 -10 -10 -10 -8 -7 -7 -7 -5 -5 -5 -4 -4 -4 -3 -3 -2 ------- Run | Yrd Mat Min Sub Mat Fac Sto Rec Fac Was Fac Fac Was Fac Res DSF Res Slots Evolved 16 | . . . . 4 2 . . 4 . . 2 . . 2 . 2 Power 1 | . . . . . . . . 1 . . . . . . . . Propulsion 4 | . . . . 1 1 . . 1 . . 1 . . . . . Utility 9 | . . . . 2 1 . . 2 . . 1 . . 2 . 1 Weapon 2 | . . . . 1 . . . . . . . . . . . 1 Parts Attached 169 | 7 15 . 11 12 4 25 11 12 5 3 8 . 8 2 2 44 Power 17 | 1 3 . 3 1 . 3 . . . . . . 1 . . 5 Engine 8 | 1 3 . 2 1 . 1 . . . . . . . . . . Core 4 | . . . 1 . . 2 . . . . . . 1 . . . Reactor 5 | . . . . . . . . . . . . . . . . 5 Propulsion 45 | 2 5 . 2 2 1 10 6 3 . . . . 3 . . 11 Treads 20 | . 2 . 1 2 . 8 3 . . . . . 1 . . 3 Leg 1 | . . . . . . . . . . . . . 1 . . . Wheel 9 | 2 2 . 1 . 1 . 2 . . . . . . . . 1 Hover 7 | . . . . . . 1 1 1 . . . . . . . 4 Flight 8 | . 1 . . . . 1 . 2 . . . . 1 . . 3 Utility 72 | 2 3 . 1 6 2 4 4 9 2 2 8 . 4 1 1 23 Device 28 | 1 . . 1 1 1 1 2 4 . 1 3 . 3 . 1 9 Storage 6 | 1 2 . . . . . . 2 . . 1 . . . . . Processor 18 | . . . . . 1 . . 1 1 1 4 . 1 . . 9 Hackware 7 | . . . . 1 . . . 2 1 . . . . 1 . 2 Protection 13 | . 1 . . 4 . 3 2 . . . . . . . . 3 Artifact . | . . . . . . . . . . . . . . . . . Weapon 35 | 2 4 . 5 3 1 8 1 . 3 1 . . . 1 1 5 Energy Gun 10 | . 2 . 1 1 . 5 . . . . . . . . . 1 Energy Cannon 4 | . . . . . . . . . 2 . . . . 1 . 1 Ballistic Gun 14 | 2 2 . 3 1 1 1 1 . . . . . . . 1 2 Ballistic Cannon 2 | . . . . . . 1 . . 1 . . . . . . . Launcher 2 | . . . 1 . . 1 . . . . . . . . . . Special Weapon 1 | . . . . . . . . . . . . . . . . 1 Impact Weapon . | . . . . . . . . . . . . . . . . . Slashing Weapon 1 | . . . . 1 . . . . . . . . . . . . Piercing Weapon 1 | . . . . . . . . . . 1 . . . . . . Special Melee Weapon . | . . . . . . . . . . . . . . . . . Unidentified Prototypes 21 | . . . . 1 . 12 1 . 1 . 1 . . 1 . 4 Corrupted Parts 2 | . . . . . . . . . . . . . . . . 2 System Corruption 11 | . . . . . . . . . . . . . . . . 11 Parts Lost 80 | . 1 . 7 4 1 1 . 5 . 2 6 . 8 1 1 43 Power 13 | . 1 . 2 . . . . 1 . 1 1 . 1 . . 6 Propulsion 22 | . . . 2 1 1 1 . 1 . . 2 . 1 . 1 12 Utility 26 | . . . 1 2 . . . 2 . . 1 . 1 1 . 18 Weapon 19 | . . . 2 1 . . . 1 . 1 2 . 5 . . 7 Highest Loss Streak 7 | . 1 . 2 1 1 1 . 1 . 2 2 . 6 1 1 7 To Critical Strikes 2 | . . . . . . . . . . . 2 . . . . . Average Backups 14 | 5 12 15 13 14 14 14 14 13 17 17 16 17 16 16 15 15 Power . | 1 . 1 . 1 1 . . . . . . . . . . . Propulsion 2 | 1 5 5 2 3 1 2 4 2 3 . . . . . . 2 Utility 7 | . 3 5 6 5 5 5 5 8 13 14 14 14 14 12 11 9 Weapon 2 | 1 2 3 2 3 5 5 3 1 1 1 1 1 1 3 3 2 Tool/Special . | . . . . . . . . . . . . . . . . . Unused Backups 75 | 1 8 3 6 6 5 10 3 5 . 7 4 1 . 1 1 14 Power 4 | . 1 . . . . 1 1 . . 1 . . . . . . Propulsion 20 | . 2 . 2 3 . 2 1 1 . 2 . . . . . 7 Utility 30 | 1 4 1 2 3 2 2 . 3 . 4 3 1 . . . 4 Weapon 20 | . 1 2 2 . 3 5 1 . . . 1 . . 1 1 3 Tool/Special 1 | . . . . . . . . 1 . . . . . . . . Average Slot Usage (%) 82 | . 99 100 99 94 99 99 87 70 67 63 59 58 59 51 56 64 Engine 5 | . 13 14 12 9 7 6 1 3 3 4 2 1 . . . . Core 1 | . . . 1 . . 1 5 1 . . . . . 4 3 1 Reactor 1 | . . . . . . . . . 4 1 1 5 4 . . 3 Treads 11 | . 21 11 11 9 22 22 17 4 2 . . . 6 . . 4 Wheel 5 | . 6 16 15 17 6 7 3 . . 2 . . . . . . Device 9 | . 6 13 13 9 3 10 7 8 8 5 8 5 7 11 13 13 Storage 8 | . 14 14 14 9 7 7 7 5 5 5 5 5 5 4 4 4 Processor 4 | . . . . . 6 . . 5 7 10 10 15 12 9 9 15 Hackware 5 | . . . . 6 7 7 7 10 11 11 10 10 10 9 9 7 Protection 4 | . 7 . . 8 11 10 10 2 . . . . . . . . Energy Gun 5 | . 7 14 7 4 5 . 6 2 5 4 . . 2 . 1 2 Ballistic Gun 9 | . 20 14 20 13 9 13 6 8 . . 3 5 1 . 4 1 Ballistic Cannon 1 | . . . . . . . 1 . 2 5 2 . . . . 2 Slashing Weapon 2 | . . . . 6 7 7 7 2 . . . . . . . . Peak Build Rating 172 | 7 11 10 18 31 39 45 57 85 102 102 98 87 126 111 112 172 Average Rating 58 | 5 8 10 13 27 37 40 49 71 94 92 89 83 105 103 103 132 On Entrance 55 | . 7 10 10 18 31 39 43 55 75 102 91 83 86 97 104 96 Avg Prop Armor Cover (%) 6 | . 3 10 10 9 19 16 9 3 . . . . . . . 3 Naked Turns . | . . . . . . . . . . . . . . . . . Heaviest Build 118 | 11 30 30 38 59 49 69 60 69 76 76 73 65 81 62 71 118 Greatest Support 178 | 26 40 26 40 30 20 60 71 117 65 96 96 48 173 106 106 178 Greatest Overweight (x) 4 | . 2 2 3 2 2 3 4 1 1 1 1 1 1 . . 2 Average Overweight (x) . | . . 1 2 1 2 2 1 . . . . 1 . . . . Largest Inventory Capacity 20 | 8 15 15 15 15 15 15 15 20 20 20 20 20 20 20 20 20 Average Capacity 16 | 7 13 15 15 15 15 15 15 15 20 20 20 20 20 20 20 18 Most Carried 20 | 7 15 15 15 15 15 15 15 16 20 20 20 20 20 20 20 20 Average Carried 15 | 5 12 14 14 14 14 14 14 14 19 19 19 19 19 18 17 17 Final Capacity 20 | 8 15 15 15 15 15 15 15 20 20 20 20 20 20 20 20 5 Final Carried 20 | 7 15 15 15 15 15 15 15 16 20 20 20 20 20 19 17 5 Scrap Engine Consumption 265 | . . . . . . . 46 22 21 32 26 15 26 5 25 47 Constructs Created 15 | . . . . . . . 4 . 1 1 2 . 3 . 2 2 Constructs Modified 65 | . . . . . . . 11 9 9 6 2 7 7 . 3 11 Class Distribution -------------------- 28% | Mutant 16% | Commander-Mutant 12% | Hacker-Mutant 11% | Hacker-Construct 10% | Scavenger-Mutant 8% | Commander-Construct 5% | Hacker-Skirmisher 3% | Hacker-Tank Dominant Class ---------------- Mutant | -10/Materials Mutant | -10/Mines Mutant | -10/Subcaves Scavenger-Mutant | -8/Materials Scavenger-Mutant | -7/Factory Commander-Mutant | -7/Storage Commander-Mutant | -7/Recycling Commander-Construct | -5/Factory Hacker-Construct | -5/Waste Hacker-Construct | -5/Factory Hacker-Mutant | -4/Factory Hacker-Mutant | -4/Waste Hacker-Mutant | -4/Factory Hacker-Mutant | -3/Research Hacker-Mutant | -3/DSF Hacker-Skirmisher | -2/Research Resources | -11 -10 -10 -10 -8 -7 -7 -7 -5 -5 -5 -4 -4 -4 -3 -3 -2 ----------- Run | Yrd Mat Min Sub Mat Fac Sto Rec Fac Was Fac Fac Was Fac Res DSF Res Matter Collected 6324 | 308 773 79 276 372 330 885 500 572 263 119 345 16 91 . 32 1363 Remotely 317 | . . . . 71 . . . . . . . . . . . 246 Salvage Created 11242 | 164 638 83 236 313 330 914 2329 935 921 1034 630 . 280 . 104 2331 Parts 514 | 11 42 4 16 26 17 47 80 50 1 39 32 . 16 . 8 125 Haulers Intercepted 7 | . 1 . . . . 3 . . . 1 1 . . . . 1 Recyclers Shooed 9 | . 1 . . . . 1 2 1 . 3 . . . . . 1 Parts Field Recycled . | . . . . . . . . . . . . . . . . . Retrieved Matter . | . . . . . . . . . . . . . . . . . Parts Self-Destructed 8 | . . . 8 . . . . . . . . . . . . . Prevented . | . . . . . . . . . . . . . . . . . Parts Restored . | . . . . . . . . . . . . . . . . . Kills | -11 -10 -10 -10 -8 -7 -7 -7 -5 -5 -5 -4 -4 -4 -3 -3 -2 ------- Run | Yrd Mat Min Sub Mat Fac Sto Rec Fac Was Fac Fac Was Fac Res DSF Res Combat Hostiles Destroyed 139 | . 18 2 9 8 7 10 6 16 4 20 6 . 4 . 2 27 Melee 7 | . . . . . . . 1 . . . 2 . 4 . . . Guns 84 | . 18 2 6 8 7 10 5 13 1 4 . . . . 1 9 Cannons 29 | . . . . . . . . 2 3 6 3 . . . . 15 AOE 16 | . . . 3 . . . . . . 10 . . . . . 3 Classes Destroyed 21 | 2 5 . 1 3 2 3 1 1 1 . . . . . 1 1 Worker 7 | . . . . . . 2 . 2 . 2 1 . . . . . Builder 5 | . . . . . . 1 . . . 1 . . . . . 3 Tunneler 4 | 4 . . . . . . . . . . . . . . . . Hauler 7 | . 1 . . . . 3 . . . 1 1 . . . . 1 Recycler 12 | 1 . . . . . 1 7 1 . . . . . . . 2 Mechanic 1 | . . . . . . 1 . . . . . . . . . . Operator 3 | . 1 . . . . . . . . 1 1 . . . . . Watcher 6 | . 1 . . 1 . . . . . 2 1 . . . . 1 Swarmer 24 | . 6 . 1 2 . . 1 4 . 10 . . . . . . Cutter 1 | . . . . . . . . . . . . . . . 1 . Grunt 44 | . 12 2 . . 4 4 1 8 . 5 1 . . . . 7 Brawler 2 | . . . . . 1 1 . . . . . . . . . . Duelist 1 | . . . . . . . 1 . . . . . . . . . Sentry 20 | . . . . 2 1 5 2 1 . 3 1 . 2 . . 3 Specialist 4 | . . . . 2 . . . . . . . . 1 . 1 . Hunter 9 | . . . . 2 . . . 2 . . 2 . . . . 3 Programmer 20 | . . . . . 1 1 . . . 2 2 . 1 . . 13 Heavy 1 | . . . . . . . . 1 . . . . . . . . Behemoth 1 | . . . . . . . . . . . . . . . . 1 Compactor 4 | . . . . . . . . . 4 . . . . . . . Subdweller 9 | . . . 8 . . . 1 . . . . . . . . . Savage 1 | . . . . . . . . . 1 . . . . . . . Best Kill Streak 7 | 2 5 2 3 3 3 4 3 5 2 5 4 . 2 . 1 7 Combat Bots Only 5 | . 5 2 3 2 3 4 1 5 2 5 3 . 2 . 1 5 Max Kills in Single Turn 5 | 1 1 1 1 1 1 2 1 1 1 5 1 . 1 . 1 2 Gunslinging . | . . . . . . . . . . . . . . . . . Exploded 5 | . . . 1 . . . . . . 5 . . . . . 2 Melee 1 | . . . . . . . 1 . . . 1 . 1 . . . Uniques/NPCs Destroyed . | . . . . . . . . . . . . . . . . . Combat | -11 -10 -10 -10 -8 -7 -7 -7 -5 -5 -5 -4 -4 -4 -3 -3 -2 -------- Run | Yrd Mat Min Sub Mat Fac Sto Rec Fac Was Fac Fac Was Fac Res DSF Res Hostile Shots Fired 1843 | . 78 6 57 64 46 154 66 88 1 179 105 . 240 12 87 660 Missed 592 | . 12 1 24 20 19 45 17 28 . 71 42 . 88 5 27 193 Hits 1251 | . 66 5 33 44 27 109 49 60 1 108 63 . 152 7 60 467 Melee 14 | . . . . . . 5 3 . 1 . . . 3 . 2 . Projectile 1237 | . 66 5 33 44 27 104 46 60 . 108 63 . 149 7 58 467 AOE 3 | . . . . . . . . . . . 2 . 1 . . . Critical Strikes 69 | . 1 2 . 1 1 1 . 2 . 5 6 . 9 . 3 38 Part Disruptions 6 | . . . . . . . . . . . . . 3 . . 3 Damage Taken 23301 | . 743 79 668 674 335 976 440 722 33 1942 1395 . 3306 188 952 10848 Core 3076 | . 116 . 101 50 14 80 78 62 . 241 115 . 527 55 185 1452 Absorbed by Shields 1599 | . . . . . . 194 86 650 . 110 . . 46 . . 513 Reduced by Siege Mode 268 | . . . . . . . . . . . . . . . . 268 Redirected to Shielding 174 | . . . . . . . 4 50 . . . . . . . 120 Ignored by Resistances 68 | . . . . . . 16 32 . . . . . 20 . . . Regen/Repaired (Parts) 3381 | . 125 . . . . . 10 243 196 501 180 144 1001 100 317 564 Core Remaining (%) 67 | 100 . . 13 90 . . 75 . . 69 . . 44 . 81 . Volleys Fired 656 | 19 87 9 39 36 23 46 26 62 28 69 43 . 13 4 14 138 Largest 4 | 2 2 2 2 2 2 2 2 3 3 3 2 . 2 1 1 4 Hottest 239 | 40 85 85 85 85 85 50 95 99 104 144 106 . 104 113 113 239 Shots Fired 1212 | 38 173 18 62 67 47 92 50 115 70 118 54 . 18 4 14 272 Gun 901 | 38 173 18 55 65 47 92 50 99 20 49 12 . 13 . 10 160 Cannon 288 | . . . . . . . . 16 50 64 42 . 5 4 4 103 Launcher 17 | . . . 7 2 . . . . . 5 . . . . . 3 Special 6 | . . . . . . . . . . . . . . . . 6 Kinetic 848 | 38 150 9 45 52 38 92 26 75 37 89 15 . 18 . 5 159 Thermal 297 | . 23 9 17 15 9 . 24 40 28 23 2 . . 4 4 99 Explosive . | . . . . . . . . . . . . . . . . . Electromagnetic 61 | . . . . . . . . . 5 6 37 . . . 5 8 Robot Hit Streak 20 | 7 8 6 7 8 14 15 19 17 20 12 11 . 10 2 7 13 Robot Miss Streak 8 | 2 4 2 3 3 5 8 3 7 3 4 3 . 1 2 1 4 Penetration Max 1 | . . . . . . . . 1 1 1 . . . . . 1 Secondary Targets 6 | . . . 2 . 2 1 . 1 . . . . . . . . Max Gunslinging Chain 1 | . . . 1 . 1 1 . 1 . . . . . . . . Shots Hit Robots 845 | 27 107 12 42 44 35 70 95 66 46 71 37 . 23 2 10 158 Core Hits 396 | 9 54 6 23 18 18 46 42 31 14 51 16 . 7 . 2 59 Critical Kills 3 | . . . . . 1 . . . 1 . . . . . . 1 Critical Parts Destroyed 9 | . . . . 1 . . 1 . 1 . . . . . . 6 Critical Strikes 31 | . 1 . 1 1 1 . 3 . 6 2 2 . . . . 14 Burn 10 | . 1 . 1 . . . 1 . . . . . . . . 7 Destroy 16 | . . . . 1 1 . 1 . 6 . . . . . . 7 Blast 2 | . . . . . . . . . . 2 . . . . . . Sever 1 | . . . . . . . 1 . . . . . . . . . Impale 2 | . . . . . . . . . . . 2 . . . . . Melee Attacks 129 | . . . . . 2 12 75 1 . 3 21 . 15 . . . Impact . | . . . . . . . . . . . . . . . . . Slashing 90 | . . . . . 2 12 75 1 . . . . . . . . Piercing 39 | . . . . . . . . . . 3 21 . 15 . . . Sneak Attacks 18 | . . . . . 1 5 8 1 . . 2 . 1 . . . Combat Hostiles . | . . . . . . . . . . . . . . . . . Follow-up Attacks . | . . . . . . . . . . . . . . . . . Damage Inflicted 26395 | 216 923 141 1106 982 833 1786 5084 1557 1089 2496 1264 . 715 82 322 7799 Guns 11272 | 216 923 141 512 848 760 1375 742 1209 406 706 151 . 242 . 163 2878 Cannons 7526 | . . . . . . . . 280 683 1084 727 . 85 82 159 4426 Explosions 1897 | . . . 594 134 . . . . . 706 . . . . . 463 Melee 5657 | . . . . . 73 411 4342 68 . . 386 . 377 . . . Ramming 43 | . . . . . . . . . . . . . 11 . . 32 Kinetic 14240 | 216 740 61 906 726 638 1375 377 828 639 1516 167 . 327 . 65 5659 Thermal 4373 | . 183 80 200 181 122 . 365 661 439 298 . . . 82 159 1603 Explosive 714 | . . . . 75 . . . . . 390 . . . . . 249 Electromagnetic 1368 | . . . . . . . . . 11 292 711 . . . 98 256 Impact . | . . . . . . . . . . . . . . . . . Slashing 4894 | . . . . . 73 411 4342 68 . . . . . . . . Piercing 763 | . . . . . . . . . . . 386 . 377 . . . Highest Corruption 75 | . 1 1 1 . 2 6 6 . . 9 2 2 7 . . 75 Average Corruption 6 | . 1 1 1 . 1 4 6 . . 8 1 2 2 . . 28 Corruption Purged 3 | . . . . . . . . . . 3 . . . . . . Corruption Blocked . | . . . . . . . . . . . . . . . . . Effects 250 | . 10 5 13 . 2 22 76 . . 14 2 5 12 . . 89 Message Errors 64 | . 5 1 3 . . 5 17 . . 6 1 1 8 . . 17 Matter Fused 58 | . 3 2 4 . . 5 25 . . 3 . 1 2 . . 13 Heat Flow Errors 33 | . . 1 . . 1 5 9 . . . 1 . 1 . . 15 Energy Discharges 23 | . . . 3 . . 1 10 . . 2 . 1 1 . . 5 Parts Rejected 5 | . . . 1 . . . 2 . . . . . . . . 2 Parts Fused 3 | . . . . . . 2 . . . . . . . . . 1 Data Loss (minor) 22 | . 1 1 1 . . 2 11 . . 1 . 2 . . . 3 Data Loss (major) 7 | . 1 . 1 . . 1 . . . 2 . . . . . 2 Misfires 4 | . . . . . 1 1 1 . . . . . . . . 1 Alerts 3 | . . . . . . . . . . . . . . . . 3 Misdirections 19 | . . . . . . . . . . . . . . . . 19 Weapon Failures 9 | . . . . . . . 1 . . . . . . . . 8 Overload Shots . | . . . . . . . . . . . . . . . . . Overflow Damage 1489 | . . . 17 5 43 66 780 28 . 1 19 . 21 . . 509 Projectiles 528 | . . . . . . . . . . . 19 . . . . 509 Explosions 23 | . . . 17 5 . . . . . 1 . . . . . . Melee 938 | . . . . . 43 66 780 28 . . . . 21 . . . Knockbacks 28 | . . . . . . . . . . 9 . . . . . 19 Impact . | . . . . . . . . . . . . . . . . . Kinetic 27 | . . . . . . . . . . 9 . . . . . 18 Secondary 1 | . . . . . . . . . . . . . . . . 1 Self-Inflicted Damage 168 | . . . 81 87 . . . . . . . . . . . . Shots 5 | . . . 4 1 . . . . . . . . . . . . Rammed 7 | . . . . . . . . . . . . . 1 . . 6 Targets Rammed 7 | . . . . . . . . . . . . . 1 . . 6 Kicked . | . . . . . . . . . . . . . . . . . Crushed . | . . . . . . . . . . . . . . . . . Highest Temperature 375 | . 124 193 3 108 242 271 276 12 244 60 161 . 93 120 11 375 Average Temperature 64 | . 36 70 3 32 40 46 86 4 101 11 53 . 29 55 11 105 Received Heat Transfer 3951 | . 360 81 105 54 99 305 84 160 . 676 123 . 342 27 336 1199 Effects 5 | . . . . . . 2 3 . . . . . . . . . Energy Bleed 2 | . . . . . . 1 1 . . . . . . . . . Interference 3 | . . . . . . 1 2 . . . . . . . . . Siege Activations 5 | . . . . . . . . . . . . . . . . 5 Total Turns 152 | . . . . . . . . . . . . . . . . 152 Longest Duration 48 | . . . . . . . . . . . . . . . . 48 Martial Activations . | . . . . . . . . . . . . . . . . . Shielding Activations . | . . . . . . . . . . . . . . . . . Robots Disrupted . | . . . . . . . . . . . . . . . . . Combat Hostiles . | . . . . . . . . . . . . . . . . . Robots Corrupted 2 | . . . . . . . . . . . 1 . . . 1 . Combat Hostiles 2 | . . . . . . . . . . . 1 . . . 1 . Parts Fried 8 | . . . . . . . . . . 1 4 . . . 2 1 Impact Corruptions . | . . . . . . . . . . . . . . . . . Robots Melted 1 | . . . . . . . . 1 . . . . . . . . Combat Hostiles 1 | . . . . . . . . 1 . . . . . . . . Parts Melted 16 | . 1 . 4 . 1 . 2 2 . 3 . . . . . 3 Heat Transferred 7884 | . 495 185 555 225 125 . 612 1290 1350 605 . . . 74 148 2220 Parts Sabotaged . | . . . . . . . . . . . . . . . . . Parts Stolen . | . . . . . . . . . . . . . . . . . Parts Stripped . | . . . . . . . . . . . . . . . . . Power Chain Reactions 1 | . . . . . . . . . . 1 . . . . . . Alert | -11 -10 -10 -10 -8 -7 -7 -7 -5 -5 -5 -4 -4 -4 -3 -3 -2 ------- Run | Yrd Mat Min Sub Mat Fac Sto Rec Fac Was Fac Fac Was Fac Res DSF Res Maximum Alert Level 3 | . . . . . . 1 . 3 1 2 1 . 2 1 . 1 Low Security (%) 79 | 100 100 100 . 100 100 60 100 . 83 19 57 100 61 . 100 79 Level 1 13 | . . . . . . 39 . 12 16 56 42 . 4 100 . 20 Level 2 5 | . . . . . . . . 36 . 24 . . 34 . . . Level 3 2 | . . . . . . . . 50 . . . . . . . . Level 4 . | . . . . . . . . . . . . . . . . . Level 5 . | . . . . . . . . . . . . . . . . . High Security . | . . . . . . . . . . . . . . . . . Max Security . | . . . . . . . . . . . . . . . . . Peak Influence 1024 | 5 186 48 . 140 88 356 199 1024 348 544 264 57 581 281 198 301 Initial 348 | . . 34 . . 58 29 129 332 348 . 264 57 . 281 153 111 Average 141 | 1 62 5 . 70 45 154 93 728 76 308 194 10 225 245 166 131 Influence Increases 7990 | 25 594 56 66 336 225 731 892 1594 50 910 215 . 1244 4 55 993 Destroy 0b10 Robot/C 3260 | . 360 40 60 160 140 300 200 520 . 400 120 . 380 . 40 540 Destroy 0b10 Robot/NC 405 | 25 15 . . 5 . 45 190 20 . 35 20 . 15 . . 35 Destroy Leader 772 | . 84 10 . 62 40 108 . 112 . 76 34 . 112 . . 134 Allied During Kill 1373 | . . 6 6 . . 155 290 475 . 13 . . 428 . . . Successful Hack 254 | . 30 . . 25 30 28 42 37 . 53 . . 4 . . 5 Select Force Hacks 210 | . 60 . . . . . 150 . . . . . . . . . Disable Machine 315 | . . . . 30 15 60 . 45 . 90 15 . 30 . . 30 Destroy Structure 566 | . . . . 39 . 5 20 60 50 78 26 . 140 4 . 144 Advance Influence 250 | . . . . . . . . 250 . . . . . . . . Lose Combat Pursuer 585 | . 45 . . 15 . 30 . 75 . 165 . . 135 . 15 105 Influence Decreases 7910 | 25 505 145 66 206 289 465 1027 795 1046 370 590 165 708 335 62 1111 Entered New Map 1908 | . . 55 . . 72 37 203 115 648 . 276 108 . 255 52 87 Time Decay 4111 | 25 495 90 36 166 207 358 694 270 158 330 254 57 328 70 . 573 Lost Part 721 | . 10 . 10 40 10 10 . 50 . 20 60 . 80 10 10 411 Lost Ally 1170 | . . . 20 . . 60 130 360 240 20 . . 300 . . 40 Squads Dispatched 41 | . 5 . . 2 2 2 . 5 . 3 2 . 8 . 1 11 Investigation 9 | . 4 . . . 1 . . 2 . 1 . . . . . 1 Extermination 13 | . . . . . . 1 . 1 . 2 1 . 2 . . 6 Reinforcement 18 | . 1 . . 2 1 1 . 1 . . 1 . 6 . 1 4 Assault 1 | . . . . . . . . 1 . . . . . . . . Garrison . | . . . . . . . . . . . . . . . . . Intercept . | . . . . . . . . . . . . . . . . . Searches Triggered . | . . . . . . . . . . . . . . . . . Construction Impeded . | . . . . . . . . . . . . . . . . . Haulers Reinforced 2 | . . . . . . . . . . . . . . . . 2 Active Scanning Responses . | . . . . . . . . . . . . . . . . . Cargo Convoy Interrupts . | . . . . . . . . . . . . . . . . . Stealth | -11 -10 -10 -10 -8 -7 -7 -7 -5 -5 -5 -4 -4 -4 -3 -3 -2 --------- Run | Yrd Mat Min Sub Mat Fac Sto Rec Fac Was Fac Fac Was Fac Res DSF Res Distress Signals 16 | . 2 . . . 1 2 3 1 . 2 2 . 2 . . 1 Communications Jammed 98 | . . . . . . 23 14 . . . . . . . . 61 Distress Signals 98 | . . . . . . 23 14 . . . . . . . . 61 Times Spotted 320 | . 37 2 15 16 8 22 13 29 10 36 17 . 46 2 5 62 Peak Tracking Total 20 | . 8 2 3 4 3 4 2 5 6 7 4 . 20 2 2 11 Tactical Retreats 29 | . 3 . . 1 . 2 . 3 3 7 . . 3 . 1 6 Traps | -11 -10 -10 -10 -8 -7 -7 -7 -5 -5 -5 -4 -4 -4 -3 -3 -2 ------- Run | Yrd Mat Min Sub Mat Fac Sto Rec Fac Was Fac Fac Was Fac Res DSF Res Traps Triggered 16 | . 2 . . . 1 3 . 1 . 3 1 . . 1 1 3 Indirectly 1 | . . . . . . . . . . 1 . . . . . . Trap Hack Attempts . | . . . . . . . . . . . . . . . . . Triggered . | . . . . . . . . . . . . . . . . . Disarmed . | . . . . . . . . . . . . . . . . . Reprogrammed . | . . . . . . . . . . . . . . . . . Reused . | . . . . . . . . . . . . . . . . . Traps Extracted . | . . . . . . . . . . . . . . . . . Installed . | . . . . . . . . . . . . . . . . . Triggered . | . . . . . . . . . . . . . . . . . Machines | -11 -10 -10 -10 -8 -7 -7 -7 -5 -5 -5 -4 -4 -4 -3 -3 -2 ---------- Run | Yrd Mat Min Sub Mat Fac Sto Rec Fac Was Fac Fac Was Fac Res DSF Res Machines Disabled 21 | . . . . 2 1 4 . 3 . 6 1 . 2 . . 2 Max in Single Turn 2 | . . . . 2 1 1 . 1 . 2 1 . . . . 1 Garrison Access 3 | . . . . 1 . . . . . . 1 . . 1 . . Machines Repaired . | . . . . . . . . . . . . . . . . . Machines Dismantled . | . . . . . . . . . . . . . . . . . Machines Sabotaged . | . . . . . . . . . . . . . . . . . Overloaded Fab Kills . | . . . . . . . . . . . . . . . . . Hacking | -11 -10 -10 -10 -8 -7 -7 -7 -5 -5 -5 -4 -4 -4 -3 -3 -2 --------- Run | Yrd Mat Min Sub Mat Fac Sto Rec Fac Was Fac Fac Was Fac Res DSF Res Machines Accessed 77 | . 9 . . 5 4 8 12 10 . 11 3 . 3 3 . 9 Terminals 40 | . 6 . . 3 2 8 6 4 . 4 1 . 1 2 . 3 Fabricators 5 | . . . . . . . . 1 . 2 . . . . . 2 Repair Stations 1 | . 1 . . . . . . . . . . . . . . . Recycling Units 17 | . 2 . . . . . 5 3 . 2 1 . 2 . . 2 Scanalyzers 8 | . . . . 1 1 . . 2 . 2 . . . . . 2 Garrison Access 5 | . . . . 1 1 . . . . 1 1 . . 1 . . Total Hacks 249 | . 26 . . 32 10 24 34 35 . 41 5 . 10 8 . 24 Successful 126 | . 13 . . 25 3 13 17 19 . 18 2 . 4 4 . 8 Failed 121 | . 13 . . 6 7 11 17 16 . 22 3 . 6 4 . 16 Catastrophic 19 | . 1 . . . . 2 6 3 . 1 . . 1 . . 5 Database Lockouts 2 | . . . . 1 . . . . . 1 . . . . . . Manual 121 | . 18 . . 9 3 16 14 17 . 22 2 . 4 2 . 14 Terminals 122 | . 18 . . 15 4 24 17 15 . 14 2 . 2 6 . 5 Fabricators 26 | . . . . . . . . 7 . 12 . . . . . 7 Repair Stations 2 | . 2 . . . . . . . . . . . . . . . Recycling Units 51 | . 6 . . . . . 14 9 . 6 1 . 8 . . 7 Scanalyzers 32 | . . . . 14 2 . . 4 . 7 . . . . . 5 Garrison Access 13 | . . . . 3 4 . . . . 2 2 . . 2 . . Terminal Hacks 33 | . 4 . . 6 1 10 5 4 . 1 . . . 1 . 1 Record 1 | . . . . . . . 1 . . . . . . . . . Part Schematic 3 | . . . . . . 2 1 . . . . . . . . . Robot Analysis 5 | . 2 . . 1 . 2 . . . . . . . . . . Prototype ID Bank 2 | . . . . 1 . . . . . 1 . . . . . . Open Door 2 | . . . . . . 2 . . . . . . . . . . Open DSF 2 | . . . . . . . . . . . . . . 1 . 1 Terminal Index 3 | . . . . 1 . . 1 1 . . . . . . . . Scanalyzer Index 1 | . . . . . . . . 1 . . . . . . . . Locate Traps 5 | . 1 . . 1 1 1 . 1 . . . . . . . . Extermination Status 1 | . . . . . . . . 1 . . . . . . . . Recall Reinforcements 1 | . . . . . . 1 . . . . . . . . . . Hauler Manifests 4 | . 1 . . 2 . 1 . . . . . . . . . . Zone Layout 1 | . . . . . . 1 . . . . . . . . . . Release Object 2 | . . . . . . . 2 . . . . . . . . . Fabricator Hacks 6 | . . . . . . . . 4 . 1 . . . . . 1 Network Status 3 | . . . . . . . . 1 . 1 . . . . . 1 Load Schematic 1 | . . . . . . . . 1 . . . . . . . . Build 2 | . . . . . . . . 2 . . . . . . . . Repair Station Hacks 2 | . 2 . . . . . . . . . . . . . . . Scan Component 1 | . 1 . . . . . . . . . . . . . . . Repair 1 | . 1 . . . . . . . . . . . . . . . Recycling Unit Hacks 11 | . 2 . . . . . 3 1 . 1 1 . 2 . . 1 Retrieve Components 11 | . 2 . . . . . 3 1 . 1 1 . 2 . . 1 Scanalyzer 22 | . . . . 13 1 . . 3 . 5 . . . . . . Insert Component 9 | . . . . 6 . . . 1 . 2 . . . . . . Analyze 7 | . . . . 6 . . . . . 1 . . . . . . Retrieve Study 6 | . . . . 1 1 . . 2 . 2 . . . . . . Garrison Access Hacks 3 | . . . . 1 . . . . . . 1 . . 1 . . Seal Access 3 | . . . . 1 . . . . . . 1 . . 1 . . Unauthorized Hacks 49 | . 5 . . 5 1 3 9 7 . 10 . . 2 2 . 5 Terminals 25 | . 3 . . 5 1 3 4 4 . 3 . . . 2 . . Assimilate 2 | . 1 . . 1 . . . . . . . . . . . . Botnet 18 | . 2 . . 3 1 3 4 2 . 2 . . . 1 . . Disrupt 1 | . . . . 1 . . . . . . . . . . . . Skim 4 | . . . . . . . . 2 . 1 . . . 1 . . Fabricators 11 | . . . . . . . . 3 . 6 . . . . . 2 Report 3 | . . . . . . . . 1 . 2 . . . . . . Liberate 5 | . . . . . . . . 1 . 2 . . . . . 2 Haulers 3 | . . . . . . . . 1 . 2 . . . . . . Repair Stations . | . . . . . . . . . . . . . . . . . Recycling Units 13 | . 2 . . . . . 5 . . 1 . . 2 . . 3 Monitor 1 | . . . . . . . . . . . . . . . . 1 Reject 3 | . . . . . . . . . . 1 . . 1 . . 1 Mask 2 | . . . . . . . . . . . . . 1 . . 1 Tunnel 7 | . 2 . . . . . 5 . . . . . . . . . Scanalyzers . | . . . . . . . . . . . . . . . . . Garrison Access . | . . . . . . . . . . . . . . . . . Data Cores Recovered 1 | . . . . . . . . . . 1 . . . . . . Used . | . . . . . . . . . . . . . . . . . Hacking Detections 64 | . 8 . . 4 4 7 10 9 . 9 1 . 2 2 . 8 Full Trace Events 5 | . 1 . . . 1 . . 2 . . . . . . . 1 Feedback Events . | . . . . . . . . . . . . . . . . . Feedback Blocked . | . . . . . . . . . . . . . . . . . Robot Schematics Acquired . | . . . . . . . . . . . . . . . . . Robots Built . | . . . . . . . . . . . . . . . . . Authchips . | . . . . . . . . . . . . . . . . . Time . | . . . . . . . . . . . . . . . . . Total Robot Build Rating . | . . . . . . . . . . . . . . . . . Part Schematics Acquired 9 | . . . . 5 . 2 1 . . 1 . . . . . . Parts Built 1 | . . . . . . . . 1 . . . . . . . . Authchips . | . . . . . . . . . . . . . . . . . Time 179 | . . . . . . . . 179 . . . . . . . . Total Part Build Rating 1 | . . . . . . . . 1 . . . . . . . . Part Studies Acquired 6 | . . . . 1 1 . . 2 . 2 . . . . . . Parts Repaired 1 | . 1 . . . . . . . . . . . . . . . Time 26 | . 26 . . . . . . . . . . . . . . . Parts Recycled . | . . . . . . . . . . . . . . . . . Recycled Matter . | . . . . . . . . . . . . . . . . . Retrieved Matter . | . . . . . . . . . . . . . . . . . Retrieved Components 40 | . 19 . . . . . 12 2 . . 1 . 3 . . 3 Parts Scanalyzed 6 | . . . . 5 . . . . . 1 . . . . . . Part Schematics Acquired 6 | . . . . 5 . . . . . 1 . . . . . . Parts Damaged . | . . . . . . . . . . . . . . . . . Bothacking | -11 -10 -10 -10 -8 -7 -7 -7 -5 -5 -5 -4 -4 -4 -3 -3 -2 ------------ Run | Yrd Mat Min Sub Mat Fac Sto Rec Fac Was Fac Fac Was Fac Res DSF Res Used RIF Installer . | . . . . . . . . . . . . . . . . . Robots Hacked 1 | . . . . . . . . . . . . . . . . 1 Non-combat 1 | . . . . . . . . . . . . . . . . 1 Combat . | . . . . . . . . . . . . . . . . . Robot Hacks Applied 4 | . . . . . . . . . . . . . . . . 4 parse_system 1 | . . . . . . . . . . . . . . . . 1 no_distress 1 | . . . . . . . . . . . . . . . . 1 find_fabricator 2 | . . . . . . . . . . . . . . . . 2 Relay Couplers Released 1 | . . . . . . . . . . . 1 . . . . . Machine Destruction 1 | . . . . . . . . . . . 1 . . . . . Fabnet Peak Effective % . | . . . . . . . . . . . . . . . . . Robots Rewired 37 | . . . . . . . 37 . . . . . . . . . Allies Hacked 5 | . . . . . . 1 1 1 . . . . . . . 2 Hacks Repelled . | . . . . . . . . . . . . . . . . . Allies | -11 -10 -10 -10 -8 -7 -7 -7 -5 -5 -5 -4 -4 -4 -3 -3 -2 -------- Run | Yrd Mat Min Sub Mat Fac Sto Rec Fac Was Fac Fac Was Fac Res DSF Res Total Allies 90 | . . 2 . . . 10 37 . 18 . . 20 . . . 3 Largest Group 36 | . . 2 2 . . 10 36 36 19 3 . 20 20 . . 3 Highest-Rated Group 826 | . . 38 38 . . 173 705 705 688 59 . 826 826 . . 174 Highest-Rated Ally 58 | . . 31 31 . . 29 40 40 50 34 . 50 50 . . 58 Total Orders . | . . . . . . . . . . . . . . . . . Ally Attacks 505 | . . 3 30 . . 52 55 131 87 . . . 144 . . 3 Total Damage 13021 | . . 22 354 . . 476 793 2688 5050 . . . 3530 . . 108 Kills 54 | . . . 3 . . 6 7 13 7 . . . 18 . . . Allies Corrupted 8 | . . . . . . . . . . 1 . . 5 . . 2 Allies Melted . | . . . . . . . . . . . . . . . . . Intel | -11 -10 -10 -10 -8 -7 -7 -7 -5 -5 -5 -4 -4 -4 -3 -3 -2 ------- Run | Yrd Mat Min Sub Mat Fac Sto Rec Fac Was Fac Fac Was Fac Res DSF Res Active Infowar (turns) 12349 | 15 828 957 1184 376 492 951 1405 588 624 931 543 347 803 149 320 1836 Optics 2356 | . . . . . 492 111 . . . . . . . . . 1753 Seismic 3360 | 15 828 957 1184 376 . . . . . . . . . . . . T.N.C. 25 | . . . . . . . . . . . 25 . . . . . Machine Analysis 6141 | . . . . . . . . 588 624 931 543 347 803 149 320 1836 Jamming 4399 | . . . . . 252 951 1405 . . . 1 . . 123 54 1613 ECM 1 | . . . . . . . . . . . 1 . . . . . Robot Analysis Total 5 | . 2 . . 1 . 2 . . . . . . . . . . Derelict Logs Recovered 3 | . . 1 2 . . . . . . . . . . . . . Drone Launches . | . . . . . . . . . . . . . . . . . Drone Recoveries . | . . . . . . . . . . . . . . . . . Exploration | -11 -10 -10 -10 -8 -7 -7 -7 -5 -5 -5 -4 -4 -4 -3 -3 -2 ------------- Run | Yrd Mat Min Sub Mat Fac Sto Rec Fac Was Fac Fac Was Fac Res DSF Res Turns Passed 15371 | 175 1828 1007 1455 431 495 971 2868 588 624 931 543 347 803 149 320 1836 Spaces Moved 10946 | 119 1096 881 1017 261 304 521 1793 650 515 691 589 197 591 237 137 1347 Core 13 | 2 . . . . . . . . . . . . . . . 11 Treads 2900 | . 633 . 68 . . 9 708 434 249 73 . . 356 . . 370 Legs 856 | . . . . . . . . 21 182 . . . . . 94 559 Wheels 4394 | 117 463 881 949 261 304 512 570 . . 337 . . . . . . Hover 1577 | . . . . . . . . 195 . 281 589 197 157 . . 158 Flight 1206 | . . . . . . . 515 . 84 . . . 78 237 43 249 Fastest Speed 37 | 50 90 105 95 107 130 130 67 42 53 58 58 124 53 53 53 37 Average Speed 108 | 89 135 109 127 107 130 133 127 56 96 101 60 124 117 53 67 94 Slowest Speed 250 | 90 160 110 240 130 130 160 185 90 131 160 124 124 160 53 72 250 Overloaded Moves 1114 | . . . . . . . . . . 171 589 197 157 . . . Propulsion Burnouts . | . . . . . . . . . . . . . . . . . Robots Hopped 15 | . . . . . . . . . . . . . 2 . . 13 Potential Cave-ins 1 | . . . 1 . . . . . . . . . . . . . Cave-ins Triggered . | . . . . . . . . . . . . . . . . . Exploration Rate (%) 48 | 5 95 99 53 30 9 74 99 19 96 20 13 78 18 7 71 33 Regions Visited 16 Branch Regions 4 Pre-discovered Areas 8 | . 2 1 . . . . 5 . . . . . . . . . Known Exits Taken 3 | . . . 1 . 1 . . . . . . . . 1 . . Unknown Exits Taken 8 | 1 1 1 . 1 . 1 1 . . 1 . . 1 . . . Scrap Searched 2 | . . 2 . . . . . . . . . . . . . . Spaces Dug 44 | . . . . . . . 16 . . 2 12 . 6 1 . 7 Terrain Destroyed 244 | . . . 50 48 . . 19 12 6 40 13 . 7 2 . 47 Melee 35 | . . . . . . . 16 . . 2 11 . 6 . . . Projectile 87 | . . . . 5 . . 3 12 6 9 2 . 1 2 . 47 AOE 122 | . . . 50 43 . . . . . 29 . . . . . . Terrain Rammed . | . . . . . . . . . . . . . . . . . Walls Destroyed . | . . . . . . . . . . . . . . . . . Machines Disabled . | . . . . . . . . . . . . . . . . . Actions | -11 -10 -10 -10 -8 -7 -7 -7 -5 -5 -5 -4 -4 -4 -3 -3 -2 --------- Run | Yrd Mat Min Sub Mat Fac Sto Rec Fac Was Fac Fac Was Fac Res DSF Res Total 13242 | 154 1293 910 1124 344 366 709 2271 767 596 800 689 302 654 255 353 1655 Wait 663 | . 52 9 18 6 7 50 56 18 37 12 11 98 21 7 192 69 Move 10905 | 118 1095 880 1016 260 303 520 1792 650 514 690 589 196 587 236 136 1323 Hop 12 | . . . . . . . . . . . . . 1 . . 11 Pick Up 162 | 9 20 4 16 17 11 14 5 7 6 9 8 3 3 3 2 25 Fast Attach 72 | 6 3 . 3 . 4 9 6 4 2 2 2 . 5 1 . 25 Attach 62 | 1 1 . 7 8 3 3 1 6 1 . 2 . 2 3 2 22 Detach 23 | . . . . . 1 4 4 3 . 1 . . 3 . 2 5 Swap 99 | . 18 4 10 7 . 22 7 9 2 3 6 . 2 . . 9 Drop 169 | 1 17 4 15 10 12 27 20 7 6 11 7 5 1 1 5 20 Fire 656 | 19 87 9 39 36 23 46 26 62 28 69 43 . 13 4 14 138 Melee 129 | . . . . . 2 12 75 1 . 3 21 . 15 . . . Ram 2 | . . . . . . . . . . . . . . . . 2 Kick . | . . . . . . . . . . . . . . . . . Crush 7 | . . . . . . . . . . . . . 1 . . 6 Escape Stasis . | . . . . . . . . . . . . . . . . . Rewire 281 | . . . . . . 2 279 . . . . . . . . . Trap . | . . . . . . . . . . . . . . . . . Miscellaneous . | . . . . . . . . . . . . . . . . . Route ------- -11/Scrapyard -10/Materials (discovered 4 exits: [*Mat x3] / [*Min]) -10/Mines (discovered 3 exits: [*Mat x2] / [*Sub]) -10/Subcaves -8/Materials -7/Factory -7/Storage (discovered 2 exits: [*Fac] / *Rec) -7/Recycling -5/Factory -5/Waste -5/Factory -4/Factory -4/Waste -4/Factory -3/Research -3/DSF -2/Research History --------- Turn | Location | Event 15 | -11/Scrapyard | Discovered new exit (range 16) 176 | -11/Scrapyard | Entered Materials 304 | -10/Materials | Build established: Mutant 345 | -10/Materials | Discovered new exit (range 10) 851 | -10/Materials | Discovered new exit (range 11) 1104 | -10/Materials | Discovered new exit (range 6) 1246 | -10/Materials | Repaired Lgt. Treads? 1404 | -10/Materials | Discovered new exit (range 16) 2004 | -10/Materials | Entered Mines 2145 | -10/Mines | A weapon hastily lodged in a ceiling crevice suddenly fell to the ground 2164 | -10/Mines | Discovered new exit (range 6) 2375 | -10/Mines | Learned location of Storage (-7) 2493 | -10/Mines | Discovered new exit (range 3) 3000 | -10/Mines | Discovered new exit (range 6) 3011 | -10/Mines | Entered Subcaves 3011 | -10/Subcaves | Accompanied by 2 allies 3016 | -10/Subcaves | Led the pair of lost Derelicts to an unsafe place 3052 | -10/Subcaves | Core integrity fell below 50% 3424 | -10/Subcaves | Shifting Twisted Machinery released Sub. Beam Cannon 3428 | -10/Subcaves | Shifting Twisted Machinery released Sub. Monowheel 3729 | -10/Subcaves | Build established: Scavenger-Mutant 3976 | -10/Subcaves | Identified exit to Materials 4033 | -10/Subcaves | Ambushed by Subdweller buried in earth 4089 | -10/Subcaves | Build established: Mutant 4094 | -10/Subcaves | Shifting Twisted Machinery released Sub. Monowheel 4446 | -10/Subcaves | Core integrity fell below 20% 4466 | -10/Subcaves | Entered Materials 4466 | -8/Materials | Evolved 4 slots: Propulsion x1, Utility x2, Weapon x1 4841 | -8/Materials | Discovered new exit (range 3) 4864 | -8/Materials | Central database locked down 4897 | -8/Materials | Entered Factory 4897 | -7/Factory | Evolved 2 slots: Propulsion x1, Utility x1 4898 | -7/Factory | Identified exit to Storage 4941 | -7/Factory | Build established: Scavenger-Mutant 5392 | -7/Factory | Entered Storage 5657 | -7/Storage | Build established: Mutant 5874 | -7/Storage | Assisted by bots powering up and referring to "LRC-V3" 5970 | -7/Storage | Discovered new exit (range 5) 6185 | -7/Storage | Build established: Commander-Mutant 6240 | -7/Storage | Discovered new exit (range 19) 6351 | -7/Storage | Used back door to open Recycling access 6363 | -7/Storage | Entered Recycling 6363 | -7/Recycling | Accompanied by 6 allies 6492 | -7/Recycling | Lost 3 allies 7160 | -7/Recycling | Discovered new exit (range 15) 7757 | -7/Recycling | Entered Scraplab 7769 | -7/Recycling | Found Prototype Device 7769 | -7/Recycling | Identified Scrap Engine 8860 | -7/Recycling | Build established: Commander-Construct 9231 | -7/Recycling | Entered Factory 9231 | -5/Factory | Accompanied by 36 allies 9231 | -5/Factory | Evolved 4 slots: Power x1, Propulsion x1, Utility x2 9475 | -5/Factory | Found Prototype Device 9531 | -5/Factory | First assault squad dispatched 9587 | -5/Factory | Lost 10 allies 9721 | -5/Factory | Lost 10 allies 9766 | -5/Factory | Fabricated Hcp. Storage Unit (x1) 9817 | -5/Factory | Identified Active Sensor Suite 9819 | -5/Factory | Sucked down chute 9819 | -5/Factory | Entered Waste 9831 | -5/Waste | Lost 8 allies 9839 | -5/Waste | Spotted C-40 Crusher 9840 | -5/Waste | Spotted C-40 Crusher 9846 | -5/Waste | Spotted C-40 Crusher 9850 | -5/Waste | Spotted C-40 Crusher 9852 | -5/Waste | Spotted C-40 Crusher 9871 | -5/Waste | Spotted C-40 Crusher 9872 | -5/Waste | Discovered new exit (range 12) 9884 | -5/Waste | Warlord forces began an assault 9909 | -5/Waste | 5 allies followed down the chute 9945 | -5/Waste | Destroyed C-40 Crusher 9950 | -5/Waste | Destroyed C-40 Crusher 10012 | -5/Waste | Lost 4 allies 10016 | -5/Waste | Destroyed C-40 Crusher 10085 | -5/Waste | Destroyed C-40 Crusher 10115 | -5/Waste | Build established: Hacker-Construct 10443 | -5/Waste | Entered Factory 10443 | -5/Factory | Accompanied by 3 allies 11242 | -5/Factory | Spotted B-75 Beast 11296 | -5/Factory | Central database locked down 11365 | -5/Factory | Discovered new exit (range 12) 11374 | -5/Factory | Entered another Factory area 11374 | -4/Factory | Evolved 2 slots: Propulsion x1, Utility x1 11835 | -4/Factory | Found Prototype Hackware 11917 | -4/Factory | Sucked down chute 11917 | -4/Factory | Entered Waste 11918 | -4/Waste | Joined by Warlord forces that had cleared the area 11962 | -4/Waste | Build established: Hacker-Mutant 12051 | -4/Waste | Found Adv. Force Booster 12125 | -4/Waste | Discovered new exit (range 13) 12264 | -4/Waste | Entered Factory 12264 | -4/Factory | Accompanied by 20 allies 12539 | -4/Factory | Lost 9 allies 12756 | -4/Factory | P-70 Sage assimilated allied 35-OCJ(g) 12873 | -4/Factory | Lost 6 allies 13035 | -4/Factory | Lost 6 parts (1p1n1u3w) 13054 | -4/Factory | Core integrity fell below 50% 13065 | -4/Factory | Discovered new exit (range 5) 13067 | -4/Factory | Entered Research 13067 | -3/Research | Evolved 2 slots: Utility x2 13094 | -3/Research | Identified Exp. Hacking Suite 13197 | -3/Research | Identified exit to DSF 13216 | -3/Research | Entered DSF 13480 | -3/DSF | Additional patrols routed to DSF 13485 | -3/DSF | Discovered new exit (range 14) 13536 | -3/DSF | Entered Research 13536 | -2/Research | Evolved 2 slots: Utility x1, Weapon x1 13557 | -2/Research | Found Fusion Bomb Launcher 13617 | -2/Research | Found Prototype Processor 13617 | -2/Research | Identified Spectral Analyzer 13619 | -2/Research | Found Spectral Analyzer 14028 | -2/Research | Lost 3 parts (2u1w) 14100 | -2/Research | Build established: Hacker-Skirmisher 14217 | -2/Research | System corruption reached 10% 14518 | -2/Research | Lost 5 parts (3u2w) 14616 | -2/Research | Build established: Hacker-Tank 14793 | -2/Research | Spotted B-90 Cyclops 14850 | -2/Research | Lost 3 parts (1n2u) 14855 | -2/Research | Destroyed B-90 Cyclops 14922 | -2/Research | System corruption reached 30% 14970 | -2/Research | Lost 5 parts (1p3u1w) 15142 | -2/Research | Spotted B-90 Cyclops 15166 | -2/Research | Lost 7 parts (2p3n2w) 15224 | -2/Research | Found Adv. Powered Armor 15226 | -2/Research | Core integrity fell below 50% 15323 | -2/Research | Lost 6 parts (4n2u) 15347 | -2/Research | Core integrity fell below 20% 15372 | -2/Research | Destroyed by P-80 Master with Gamma Rifle Last Messages --------------- Imp. Antigrav System (46%). 15338_ Acquired Imp. Melee Analysis Suite. 15338_ >> MONITOR: Recycling Unit R005 accepting Myomer Leg (58%). 15340_ >> MONITOR: Recycling Unit R003 accepting Sml. Battery (100%). 15341_ >> MONITOR: Recycling Unit R005 accepting Myomer Leg (78%). 15342_ Adv. Transmission Jammer destroyed. 15342_ Acquired Field Propulsion Drive+. 15343_ System corrupted: Slammed into wall. 15344_ >> MONITOR: Recycling Unit R005 accepting Adv. Remote Datajack (96%). 15349_ System corrupted: Matter fused (-2). 15361_ Door malfunctions. 15364_ Cld. Field Propulsion Drive destroyed. 15365_ Field Propulsion Drive+ destroyed. 15366_ Dropped Imp. Energy Well. 15368_ Extracted 2 energy. 15370_ Door malfunctions. Map ----- +----------------------------------------------------+ | ????????###+##### ##??# ## [ ## #???# #?????? | | ????????# # #?## ## ## #???# #?????? | | ????????# # ###! # ## #???# #?????? | | ????????# + + ## #???# #?????? | | ????????#! # ### # ## #???# #?????? | | ????????# # #?##### ! ## #???# #?????? | | ????????# ### ###?????######### #???# #?????? | | ????????########?# #???????????????# #???# #?????? | | ?????????????????# #???????????????# #???# #?????? | | ?????????????????# ################# ##### #?????? | | ?????????????????# #?????? | | ?????????????????# #################+##### #?????? | | ?????????????????# #??????????????= ??# #?????? | | ?????????????????# #?????????????# ## #?????? | | ?????????????????# #?????######### ! ## #?????? | | ?????????????????# #???### ]!## ## #?????? | | ?????????????????# #???# / ! ## ! ## #?????? | | ?????????????????# #???# # ## ## #?????? | | ?????????????????# #???# # ! ####+##### #?????? | | ????????????###### #???# # #????????# #?????? | | ????????????# ## #???# # #????????# #?????? | | ????????????+ #???# ##/######## #???# #?????? | | ????????????# ####???# pp! #??## ##????? | | ????????????## ######### ############# #????? | | ?????????????# # # p #???# + #????? | | ?????????????# # = / @gg#???# ! ! # #????? | | ?????????????# # # #???# ## ##????? | | ?????######### ######### g########+##### #?????? | | ?????# ## ##??#####+## #?????? | | ?????# # #??# # ####?????? | | ?????# = + T #??# # #????????? | | ?????# # #??# ] " #????????? | | ?????# ## ##??# # ###############??????? | | ?????# ## #???# !# #????????# #??????? | | ?????#####+### #???#= # #????????# #??????? | | ?????????# #?# #???######## #????????# ] [#??????? | | ?????????# #?# #??????????# ########## #??????? | | ?????????# #?# #??????????# / #??????? | | ?????????# #?# #??????????#+########## #??????? | | ?????????#!#?# #??????????# ##### #??????? | | ?????????#!#?# #???"""????# / + #??????? | | ?????????#!#?# #???"""????# ##### #??????? | | ????######/##? ????"""????# #???######??????? | | ????# =!]#? ???????????# #???????????????? | | ????# #? ???????????# =#???????????????? | | ????# #? ???????????########???????????????? | | ????# #? ??###+####????????????????????????? | | ????# "" #? ?? ] ?????????????????????????? | | ????# "" +? ?? ?????????????????????????? | | ????# "" #? ?? ?????????????????????????? | +----------------------------------------------------+ Best States ------------- Heat Dissipation 80 Coolant Potential 80 Energy Generation 53 Energy Capacity 605 Matter Stores 300 Matter Capacity 300 Sight Range 24 Terrain Scan Density 210 Jamming Range 16 Power Amplification 30 Corruption Containment 12 Armor Coverage 800 Resistance: KI 30 Resistance: TH 15 Power Shielding 66 Utility Shielding 66 Weapon Cycling 15 Evasion (%) 71 Melee Accuracy 6 Launcher Accuracy 40 Target Analysis 6 Core Analysis 6 Armor Integrity Analysis 40 Recoil Reduction 6 Particle Charging 25 Kinecelleration 40 Salvage Targeting 3 Offensive Hacking 30 Defensive Hacking 12 Item Schematics ----------------- Adv. Beam Cannon | -8/Materials | Scanalyzed Multitool | -8/Materials | Scanalyzed Sub. Monowheel | -8/Materials | Scanalyzed Imp. Heat Sink | -8/Materials | Scanalyzed Lgt. Angular Momentum Engine | -8/Materials | Scanalyzed Matter Filter | -7/Storage | Hacked Hcp. Storage Unit | -7/Storage | Hacked Arm. Huge Wheel | -7/Recycling | Hacked Adv. Particle Charger | -5/Factory | Scanalyzed Robot Schematics ------------------ None Fabricated ------------ Hcp. Storage Unit | x1 | -5/Factory Repaired ---------- Lgt. Treads | 10% | -10/Materials Studied --------- Hpw. Shotgun | -8/Materials | Hacked Arm. Treads | -7/Factory | Hacked VTOL Module | -5/Factory | Hacked Field Propulsion Drive | -5/Factory | Hacked Lance | -5/Factory | Hacked Imp. Remote Datajack | -5/Factory | Hacked Alien Tech Used ----------------- None Achievements -------------- A Problem For Future Me Deductive Reasoning Do Not Disturb Ghost 'Em Junior Dev My Bad Not So Scrappy Overwhelming Plot Armor Scrappetite Sprinter Throw Away The Key We Love MA Challenges ------------ None Game ------ Seed ThermicWeaponsAutohacker Manual? 0 Play Time 03:19:53 Cumulative 251.3 hours Start 2025.10.10 @ 15:23:19 End 2025.10.10 @ 20:33:32 Sessions 1 Manual Loads 0 Difficulty Rogue Special Mode None Game No. 155 Rogue 151 Adventurer 4 Explorer 0 Win Type - Total 7 Types 6/0/1/0/0/0/0/0/0/0 Lore% 84 Gallery% 73 Achievement% 43 Wizard Run 0 Options --------- Layout 1 ASCII 0 Keyboard 1 Movement Vi Keybinds 1 Fullscreen 2 Font 24/Smallcaps Map View 50x35 Zoom Use 0% Tactical HUD 1 Map Filters NONE Filters NONE Steam 1 RUN: ec3a247f-5ace-47b2-a5c0-3a215623e57c